fUST/lending_fUST_20251101
["ID","MTS","AMOUNT","RATE_DAILY","PERIOD"]
[392808932,1761981042224,-500.0,0.00028283,2]
[392808933,1761981042234,-500.0,0.00028283,2]
[392808934,1761981042243,-532.30152578,0.00028283,2]
[392808935,1761981042251,-269.07201157,0.00028283,2]
[392808936,1761981042260,-395.50654003,0.00028283,2]
[392808937,1761981042269,-500.0,0.00028283,2]
[392808938,1761981042278,-500.0,0.00028283,2]
[392808939,1761981042287,-500.0,0.00028283,2]
[392808940,1761981042296,-500.0,0.00028283,2]
[392808941,1761981042305,-500.0,0.00028283,2]
[392808942,1761981042315,-500.0,0.00028283,2]
[392808943,1761981042325,-500.0,0.00028283,2]
[392808944,1761981042333,-500.0,0.00028283,2]
[392808945,1761981042342,-500.0,0.00028283,2]
[392808946,1761981042352,-422.81983014,0.00028283,2]
[392808947,1761981042361,-157.79310347,0.00028283,2]
[392808948,1761981042370,-500.0,0.00028283,2]
[392808949,1761981042379,-151.0,0.00029181,2]
[392808950,1761981042388,-151.0,0.00029181,2]
[392808951,1761981042397,-151.0,0.00029181,2]
[392808952,1761981042406,-151.0,0.00029181,2]
[392808953,1761981042415,-151.0,0.00029181,2]
[392808954,1761981042424,-151.0,0.00029181,2]
[392808955,1761981042433,-151.0,0.00029181,2]
[392808956,1761981042442,-151.0,0.00029181,2]
[392808957,1761981042451,-151.0,0.00029181,2]
[392808958,1761981042460,-151.0,0.00029181,2]
[392808959,1761981042470,-2516.29557444,0.0002989,2]
[392808960,1761981042480,-824.20547889,0.00029954,2]
[392808961,1761981042777,-3e-08,0.00029181,2]
[392808965,1761981043753,-246.03473921,0.00029181,2]
[392808966,1761981043763,-30868.95167348,0.00029954,2]
[392808972,1761981046653,-527.3554621,0.00029954,2]
[392808973,1761981047775,-2517.00826203,0.00029954,2]
[392808974,1761981047784,-2001.35113006,0.00029964,2]
[392808975,1761981047794,-1109.31,0.0002997,10]
[392808976,1761981047805,-500.0,0.00029973,5]
[392808977,1761981047814,-500.0,0.00029973,2]
[392808978,1761981047823,-518.86943113,0.00029973,5]
[392808979,1761981047833,-500.0,0.00029973,3]
[392808980,1761981047844,-6.17695178,0.00029973,5]
[392808981,1761981047856,-469.54907316,0.00029973,5]
[392808982,1761981047867,-500.0,0.00029973,5]
[392808983,1761981047877,-503.4868178,0.00029973,5]
[392808984,1761981047887,-500.0,0.00029973,5]
[392808985,1761981047898,-6555.45555945,0.0002998,2]
[392808986,1761981047910,-1437.1938843,0.0002998,2]
[392808987,1761981049693,-4763.45329787,0.0002998,2]
[392808988,1761981082526,151.0,0.0003141,31]
[392808989,1761981086451,483.92538557,0.0003389,120]
[392808990,1761981095241,162.373467,0.0003141,31]
[392808991,1761981121492,566.47,0.00038052,30]
[392808992,1761981129961,154.455577,0.0003141,31]
[392808993,1761981228026,-281.35196836,0.0002589,2]
[392808994,1761981228048,-33.36696012,0.00026009,2]
[392808995,1761981263090,2725.390205,0.00031408,31]
[392808996,1761981263511,2725.390205,0.0003189,31]
[392808997,1761981263874,2725.390205,0.0003199,31]
[392808998,1761981264242,2725.390205,0.00032578,31]
[392808999,1761981264616,2725.390205,0.00032589,31]
[392809000,1761981264985,2725.390205,0.00031408,31]
[392809001,1761981265405,2725.390205,0.0003189,31]
[392809002,1761981265721,2725.390205,0.0003199,31]
[392809003,1761981266085,2725.390205,0.00032578,31]
[392809004,1761981266463,2725.390205,0.00032589,31]
[392809005,1761981266807,2725.390205,0.00031408,31]
[392809006,1761981267135,2725.390205,0.0003189,31]
[392809007,1761981267525,2725.390205,0.0003199,31]
[392809008,1761981267878,2725.390205,0.00032578,31]
[392809009,1761981268209,2725.390205,0.00032589,31]
[392809010,1761981268539,2725.390205,0.00031408,31]
[392809011,1761981268847,2725.390205,0.0003189,31]
[392809012,1761981269140,2725.390205,0.0003199,31]
[392809013,1761981269933,2725.390205,0.00032578,31]
[392809014,1761981270223,2725.390201,0.00032589,31]
[392809018,1761981335482,153.568253,0.00031406,31]
[392809019,1761981360542,500.0,0.00035616,30]
[392809021,1761981405742,465.78763756,0.00033607,120]
[392809022,1761981406188,514.53285545,0.00035607,120]
[392809023,1761981445772,403.98447456,0.00035616,30]
[392809024,1761981458214,500.0,0.00035616,30]
[392809031,1761981577908,-177.0,0.00025607,2]
[392809032,1761981622904,-93.80676603,0.00025607,2]
[392809033,1761981622927,-108.54551877,0.00025995,2]
[392809034,1761981627267,150.0,0.00015899,30]
[392809035,1761981627710,289.73,0.00017344,30]
[392809036,1761981628142,434.59,0.0001879,30]
[392809037,1761981628542,579.46,0.00020235,30]
[392809038,1761981629502,724.32,0.00021681,30]
[392809039,1761981629947,869.19,0.00023126,30]
[392809040,1761981630346,1014.05,0.00024571,30]
[392809041,1761981630762,1158.91,0.00026017,30]
[392809042,1761981631172,1303.78,0.00027462,30]
[392809043,1761981631711,1443.51458125,0.00028907,30]
[392809045,1761981663439,3225.02,0.0002551,2]
[392809046,1761981682495,231.955479,0.00031045,31]
[392809048,1761981726196,428.83765985,0.000336,120]
[392809049,1761981726519,473.71601961,0.000356,120]
[392809050,1761981733209,5000.0,0.0002551,2]
[392809051,1761981741782,1230.46,0.0002551,2]
[392809052,1761981741806,3769.54,0.0002551,2]
[392809070,1761981756976,5000.0,0.0002551,2]
[392809071,1761981764775,1230.47,0.0002551,2]
[392809072,1761981764799,3769.53,0.0002551,2]
[392809073,1761981772750,513.5391568,0.0002551,2]
[392809074,1761981780506,5000.0,0.0002551,2]
[392809075,1761981785762,150.0,0.000175,30]
[392809076,1761981786070,202.81,0.00019091,30]
[392809077,1761981786519,304.22,0.00020681,30]
[392809078,1761981787271,405.62,0.00022272,30]
[392809079,1761981787576,507.03,0.00023863,30]
[392809080,1761981787978,608.43,0.00025454,30]
[392809081,1761981788387,709.84,0.00027045,30]
[392809082,1761981788609,716.9408432,0.0002551,2]
[392809083,1761981788638,4283.0591568,0.0002551,2]
[392809084,1761981788830,811.24,0.00028636,30]
[392809085,1761981789238,912.65,0.00030227,30]
[392809086,1761981789653,965.43,0.00031818,30]
[392809087,1761981803729,5000.0,0.0002551,2]
[392809088,1761981811676,716.9508432,0.0002551,2]
[392809089,1761981811702,4283.0491568,0.0002551,2]
[392809090,1761981827408,5000.0,0.0002551,2]
[392809091,1761981835720,716.9608432,0.0002551,2]
[392809092,1761981835747,4283.0391568,0.0002551,2]
[392809093,1761981851075,5000.0,0.0002551,2]
[392809094,1761981858041,-1139.85659663,0.00025552,2]
[392809095,1761981859887,716.9708432,0.0002551,2]
[392809096,1761981859914,4283.0291568,0.0002551,2]
[392809101,1761981860604,-204.01119664,0.00025552,2]
[392809102,1761981861274,-176.33384356,0.00025552,2]
[392809103,1761981865098,-200.0,0.00025552,2]
[392809104,1761981868565,-177.0,0.00025552,2]
[392809105,1761981871082,-327.22781562,0.00025552,2]
[392809108,1761981875681,5000.0,0.0002551,2]
[392809109,1761981876374,-509.0697,0.00025552,2]
[392809110,1761981877033,-582.66278515,0.00025552,2]
[392809111,1761981877058,-247.18245029,0.000256,2]
[392809113,1761981881359,-2.14177056,0.000256,2]
[392809114,1761981883948,716.9808432,0.0002551,2]
[392809115,1761981883982,4283.0191568,0.0002551,2]
[392809116,1761981899164,5000.0,0.0002551,2]
[392809117,1761981907090,716.9908432,0.0002551,2]
[392809118,1761981907115,4283.0091568,0.0002551,2]
[392809123,1761981911219,152.19074848,0.00024932,2]
[392809130,1761981922360,5000.0,0.0002551,2]
[392809137,1761981930576,564.81009472,0.0002551,2]
[392809138,1761981930602,4435.18990528,0.0002551,2]
[392809145,1761981942952,150.0,0.00015193,30]
[392809146,1761981943321,150.0,0.00016575,30]
[392809147,1761981943738,212.95,0.00017956,30]
[392809148,1761981944180,283.93,0.00019337,30]
[392809150,1761981944610,354.92,0.00020718,30]
[392809151,1761981945058,425.9,0.000221,30]
[392809152,1761981945464,496.88,0.00023481,30]
[392809153,1761981945768,5000.0,0.0002551,2]
[392809154,1761981945870,567.87,0.00024862,30]
[392809155,1761981946288,638.85,0.00026243,30]
[392809156,1761981946711,622.8,0.00027624,30]
[392809159,1761981954028,564.82009472,0.0002551,2]
[392809160,1761981954051,4435.17990528,0.0002551,2]
[392809165,1761981969350,5000.0,0.0002551,2]
[392809172,1761981977101,564.83009472,0.0002551,2]
[392809173,1761981977125,4435.16990528,0.0002551,2]
[392809174,1761981978361,14590.0,0.0003805,30]
[392809175,1761981986522,173.0,1.04e-06,2]
[392809176,1761981987549,173.0,1.04e-06,2]
[392809177,1761981987738,19.46827289,0.00025452,2]
[392809178,1761981987760,2606.15818911,0.00025452,2]
[392809179,1761981988588,173.0,1.04e-06,2]
[392809180,1761981989711,173.0,1.04e-06,2]
[392809182,1761982018628,150.0,0.00015185,30]
[392809183,1761982019056,150.0,0.00016565,30]
[392809184,1761982019569,150.0,0.00017945,30]
[392809185,1761982019895,198.75,0.00019326,30]
[392809186,1761982020313,248.44,0.00020706,30]
[392809187,1761982020718,298.13,0.00022087,30]
[392809188,1761982021147,347.82,0.00023467,30]
[392809189,1761982021549,397.51,0.00024848,30]
[392809190,1761982021969,447.2,0.00026228,30]
[392809191,1761982022390,310.94,0.00027608,30]
[392809192,1761982043842,215.456685,0.00025493,2]
[392809193,1761982044650,-162.524783,0.000256,2]
[392809194,1761982045499,400.46186008,0.000336,120]
[392809195,1761982045920,442.37065939,0.000356,120]
[392809196,1761982056128,500.0,0.000253,2]
[392809197,1761982063856,20053.41875853,0.00018,2]
[392809198,1761982067560,9659.59772133,0.00018,2]
[392809199,1761982072237,90058.8100539,0.00025,5]
[392809200,1761982073236,16702.78035992,0.00024774,2]
[392809202,1761982093811,1010.02458812,0.00015,2]
[392809204,1761982095641,150.0,0.00015185,30]
[392809205,1761982096056,150.0,0.00016566,30]
[392809207,1761982096514,150.0,0.00017946,30]
[392809208,1761982096898,150.0,0.00019327,30]
[392809209,1761982097310,174.84,0.00020707,30]
[392809210,1761982097719,209.81,0.00022088,30]
[392809211,1761982098124,244.77,0.00023468,30]
[392809212,1761982098566,279.74,0.00024849,30]
[392809213,1761982098969,314.71,0.00026229,30]
[392809214,1761982100021,287.09872694,0.0001,2]
[392809215,1761982103205,2318.83798029,0.0002,2]
[392809216,1761982103807,72879.69645838,0.00025,15]
[392809217,1761982104580,-70.30187984,0.000256,2]
[392809218,1761982104601,-221.43623131,0.00025995,2]
[392809219,1761982104768,1078.07959735,0.00025,2]
[392809220,1761982105051,9129.51232142,0.00017,2]
[392809221,1761982105076,450.91073597,0.00025,7]
[392809222,1761982105263,-291.73811115,0.00025995,2]
[392809224,1761982105830,60118.89767907,0.00022,2]
[392809225,1761982106825,1936.06264939,0.0002,20]
[392809226,1761982107026,2656.40583028,0.00025,2]
[392809227,1761982107310,368.3877338,0.0002,2]
[392809228,1761982107786,516.85607166,0.00015,2]
[392809229,1761982108151,10364.0,0.00025,2]
[392809230,1761982108665,1721.11159831,0.00024,2]
[392809231,1761982108701,25191.37101304,0.00019,2]
[392809233,1761982110798,44516.52969479,0.00026,30]
[392809234,1761982111720,1000.0,0.000255,2]
[392809236,1761982113243,23000.0,0.0002,2]
[392809237,1761982113803,164.30178718,0.00024,2]
[392809238,1761982113841,666.37857931,0.00025,2]
[392809239,1761982114079,200.89283928,0.0002,2]
[392809243,1761982115716,12740.64239806,0.000215,2]
[392809244,1761982115805,18403.90220128,0.0002465,2]
[392809246,1761982115979,600.0,0.00025,2]
[392809247,1761982116249,14009.25341161,0.00025,2]
[392809248,1761982117475,70556.18730083,0.00024142,2]
[392809249,1761982118822,4076.7176409,0.0002,2]
[392809250,1761982119136,9560.58294448,0.00022,2]
[392809251,1761982128391,-244.93034621,0.00025517,2]
[392809252,1761982142519,10000.0,0.0003561,30]
[392809253,1761982149163,-4155.15191207,0.00025995,2]
[392809254,1761982149297,-300.0,0.00025999,2]
[392809255,1761982149318,-526.09283888,0.00026,2]
[392809256,1761982149339,-19900.0,0.00026,2]
[392809257,1761982149360,-1200.0,0.00026006,2]
[392809258,1761982149381,-1200.0,0.00026006,2]
[392809259,1761982149403,-300.0,0.00026007,2]
[392809260,1761982149423,-300.0,0.00026007,2]
[392809261,1761982149442,-300.0,0.00026007,2]
[392809262,1761982149462,-300.0,0.00026008,2]
[392809263,1761982149481,-9308.16400788,0.00026009,2]
[392809264,1761982149500,-963.86925919,0.00026396,2]
[392809265,1761982149522,-1544.72605212,0.0002643,2]
[392809266,1761982149542,-500.0,0.00026725,2]
[392809267,1761982149562,-6335.66872767,0.00026773,2]
[392809268,1761982149583,-1000.52,0.0002685,10]
[392809269,1761982149605,-500.0,0.00026859,2]
[392809270,1761982149626,-500.0,0.00026859,2]
[392809271,1761982149651,-500.0,0.00026859,2]
[392809272,1761982149672,-500.0,0.00026859,2]
[392809273,1761982149694,-517.30968353,0.00026859,2]
[392809274,1761982149716,-500.0,0.00026859,2]
[392809275,1761982149740,-491.42442557,0.00026859,2]
[392809276,1761982149764,-500.0,0.00026859,2]
[392809277,1761982149784,-503.71908198,0.00026873,2]
[392809278,1761982149806,-500.0,0.00026873,2]
[392809279,1761982149826,-514.93858195,0.00026873,2]
[392809280,1761982149846,-579.57,0.00027052,10]
[392809281,1761982149868,-1214.63791658,0.00027052,2]
[392809282,1761982149889,-519.16304808,0.00027061,2]
[392809283,1761982149911,-17270.7841942,0.00027062,2]
[392809284,1761982149931,-500.0,0.00027273,2]
[392809285,1761982149950,-504.31750824,0.00027421,3]
[392809286,1761982149970,-274.73546215,0.000276,2]
[392809287,1761982149990,-2239.08166189,0.00027793,2]
[392809288,1761982150010,-506.45761781,0.00027872,4]
[392809289,1761982150031,-341.70246211,0.00027872,4]
[392809290,1761982150053,-567.404979,0.00027888,4]
[392809291,1761982150074,-500.0,0.00027888,2]
[392809292,1761982150093,-199.0,0.00027889,7]
[392809293,1761982150113,-500.0,0.00027889,4]
[392809294,1761982150132,-500.0,0.00027889,4]
[392809295,1761982150151,-500.0,0.00027889,4]
[392809296,1761982150171,-500.0,0.00027889,4]
[392809297,1761982150190,-500.0,0.00027889,4]
[392809298,1761982150208,-500.0,0.00027889,4]
[392809299,1761982150226,-500.0,0.00027889,4]
[392809300,1761982150247,-500.9769299,0.00027889,4]
[392809301,1761982150266,-1355.77,0.00027889,4]
[392809302,1761982150285,-1355.77,0.00027889,4]
[392809303,1761982150304,-1355.77,0.00027889,4]
[392809304,1761982150325,-2239.08166189,0.00028025,2]
[392809305,1761982150344,-160.0,0.0002805,2]
[392809306,1761982150364,-420.0,0.00028137,2]
[392809307,1761982150383,-1680.0,0.00028144,2]
[392809308,1761982150402,-420.0,0.00028145,2]
[392809309,1761982150421,-300.0,0.00028146,2]
[392809310,1761982150444,-209.51017245,0.00028163,8]
[392809311,1761982150465,-1680.0,0.0002827,2]
[392809312,1761982150486,-2239.08166189,0.00028349,2]
[392809313,1761982150511,-260.0,0.00028598,2]
[392809314,1761982150532,-2239.08166189,0.00028727,2]
[392809315,1761982150553,-833.76,0.00028773,10]
[392809316,1761982150574,-694.8,0.00028773,10]
[392809317,1761982150596,-2239.08166189,0.00028783,2]
[392809318,1761982150617,-3616.23823239,0.00028917,2]
[392809319,1761982150638,-3643.91374974,0.0002897,2]
[392809320,1761982150656,-415.55794446,0.00028973,5]
[392809321,1761982150677,-500.0,0.00028973,2]
[392809322,1761982150696,-208.78585451,0.00028973,5]
[392809323,1761982150716,-2429.27583316,0.0002898,2]
[392809324,1761982150736,-100000.0,0.0002899,2]
[392809325,1761982150758,-1000.0,0.00029,7]
[392809326,1761982150777,-196.83739363,0.00029033,2]
[392809327,1761982150796,-360.0,0.00029146,2]
[392809328,1761982150817,-2239.08166189,0.0002926,2]
[392809329,1761982150837,-1174.75369315,0.00029285,2]
[392809330,1761982150856,-151.0,0.000293,10]
[392809331,1761982150874,-1174.75369315,0.00029376,2]
[392809332,1761982150894,-1214.63791658,0.00029408,2]
[392809333,1761982150913,-2239.08166189,0.00029418,2]
[392809334,1761982150933,-151.0,0.000295,18]
[392809335,1761982150952,-505.84600077,0.00029521,2]
[392809336,1761982150971,-12878.91222101,0.0002956,2]
[392809337,1761982150990,-3643.91374974,0.00029578,2]
[392809338,1761982151010,-6073.1895829,0.00029588,2]
[392809339,1761982151029,-31376.35012732,0.00029598,2]
[392809340,1761982155483,4609.36175411,0.00035616,30]
[392809341,1761982156529,4072.0,0.00025204,2]
[392809342,1761982163101,-174.75342315,0.00025899,2]
[392809343,1761982163125,-500.0,0.00026859,2]
[392809344,1761982163145,-1478.65717781,0.000295,2]
[392809345,1761982163165,-5020.69970265,0.00029598,2]
[392809346,1761982170909,150.0,0.00015481,30]
[392809347,1761982171335,150.0,0.00016888,30]
[392809348,1761982171760,150.0,0.00018295,30]
[392809349,1761982172182,150.0,0.00019703,30]
[392809350,1761982172604,150.0,0.0002111,30]
[392809351,1761982173003,150.12,0.00022517,30]
[392809352,1761982173410,175.14,0.00023925,30]
[392809353,1761982173812,175.94,0.00025332,30]
[392809356,1761982178878,4550.11768883,0.0003561,30]
[392809361,1761982196282,983.530878,0.00013699,2]
[392809362,1761982196487,983.530878,0.00020187,2]
[392809388,1761982231983,-200.0,0.00026676,2]
[392809390,1761982231996,-983.530878,0.00026676,2]
[392809392,1761982232008,-151.0,0.00027046,2]
[392809394,1761982232021,-151.0,0.00027046,2]
[392809395,1761982232032,-151.0,0.00027046,2]
[392809396,1761982232045,-151.0,0.00027046,2]
[392809397,1761982232056,-151.0,0.00027046,2]
[392809398,1761982232068,-151.0,0.00027046,2]
[392809399,1761982232081,-151.0,0.00027046,2]
[392809400,1761982232091,-151.0,0.00027046,2]
[392809401,1761982232103,-151.0,0.00027046,2]
[392809402,1761982232114,-151.0,0.00027046,2]
[392809403,1761982232125,-151.0,0.00027046,2]
[392809404,1761982232138,-151.0,0.00027046,2]
[392809405,1761982232149,-151.0,0.00027046,2]
[392809406,1761982232161,-151.0,0.00027046,2]
[392809407,1761982232171,-151.0,0.00027046,2]
[392809408,1761982232184,-151.0,0.00027046,2]
[392809410,1761982232196,-151.0,0.00027046,2]
[392809412,1761982232208,-151.0,0.00027046,2]
[392809414,1761982232219,-151.0,0.00027046,2]
[392809416,1761982232231,-151.0,0.00027046,2]
[392809418,1761982232242,-1000.0,0.00029243,2]
[392809419,1761982232253,-1000.0,0.00029243,2]
[392809420,1761982232263,-1000.0,0.00029243,2]
[392809421,1761982232275,-1000.0,0.00029243,2]
[392809422,1761982232286,-1092.10286408,0.00029243,2]
[392809423,1761982232297,-579.0,0.00029588,10]
[392809424,1761982232309,-482.5,0.00029588,10]
[392809425,1761982232323,-402.09,0.00029588,10]
[392809426,1761982232335,-300.0,0.00029597,2]
[392809427,1761982232348,-300.0,0.00029597,2]
[392809428,1761982232360,-1200.0,0.00029597,2]
[392809429,1761982232371,-187341.46678763,0.00029598,2]
[392809430,1761982232383,-316.64426146,0.000296,2]
[392809431,1761982232396,-1214.63791658,0.00029687,2]
[392809432,1761982232409,-151.0,0.000297,19]
[392809433,1761982232420,-50000.0,0.00029707,2]
[392809434,1761982232432,-151.0,0.00029724,2]
[392809435,1761982232443,-151.0,0.00029724,2]
[392809436,1761982232452,-213.79441171,0.00029724,2]
[392809437,1761982232462,-151.38287914,0.00029724,2]
[392809438,1761982232472,-151.0,0.00029724,2]
[392809439,1761982232483,-151.0,0.00029724,2]
[392809440,1761982232493,-151.0,0.00029724,2]
[392809441,1761982232504,-500.0,0.00029724,2]
[392809442,1761982232516,-207.93336941,0.00029724,2]
[392809443,1761982232530,-151.0,0.00029724,2]
[392809444,1761982232541,-151.0,0.00029724,2]
[392809445,1761982232553,-500.0,0.00029724,2]
[392809446,1761982232563,-151.0,0.00029724,2]
[392809447,1761982232574,-151.0,0.00029724,2]
[392809448,1761982232584,-500.0,0.00029724,2]
[392809449,1761982232594,-7061.4719032,0.00029725,2]
[392809450,1761982232607,-12931.661399,0.00029725,2]
[392809451,1761982232617,-882.796186,0.00029725,2]
[392809452,1761982232628,-453.9318566,0.00029726,2]
[392809453,1761982232638,-151.0,0.00029779,2]
[392809454,1761982232649,-151.0,0.00029779,2]
[392809455,1761982232659,-151.0,0.00029779,2]
[392809456,1761982232670,-151.0,0.00029779,2]
[392809457,1761982232681,-151.0,0.00029779,2]
[392809458,1761982232692,-500.0,0.00029779,2]
[392809459,1761982232702,-151.0,0.00029779,2]
[392809460,1761982232713,-151.0,0.00029779,2]
[392809461,1761982232723,-500.0,0.00029779,2]
[392809462,1761982232734,-151.0,0.00029779,2]
[392809463,1761982232744,-151.0,0.00029779,2]
[392809464,1761982232755,-151.0,0.000298,20]
[392809465,1761982232766,-199.3526783,0.00029834,2]
[392809466,1761982232776,-198.55345854,0.00029834,2]
[392809467,1761982232787,-151.0,0.00029834,2]
[392809468,1761982232798,-198.88283078,0.00029834,2]
[392809469,1761982232809,-199.8465962,0.00029834,2]
[392809470,1761982232819,-500.0,0.00029834,2]
[392809471,1761982232829,-199.38663437,0.00029834,2]
[392809472,1761982232840,-200.42838806,0.00029834,2]
[392809473,1761982232851,-500.0,0.00029834,2]
[392809474,1761982232862,-198.40532102,0.00029834,2]
[392809475,1761982232873,-198.38259285,0.00029834,2]
[392809476,1761982232883,-1214.63791658,0.00029849,2]
[392809477,1761982232895,-705.33,0.00029859,3]
[392809478,1761982232905,-352.67,0.00029859,3]
[392809479,1761982232917,-176.33,0.00029859,3]
[392809480,1761982232928,-529.02,0.00029859,3]
[392809481,1761982232939,-500.0,0.00029868,2]
[392809482,1761982232949,-500.0,0.00029868,2]
[392809483,1761982232960,-2732.83,0.00029868,2]
[392809484,1761982232973,-2732.83,0.00029868,2]
[392809485,1761982232984,-2732.83,0.00029868,2]
[392809486,1761982232995,-2732.83,0.00029868,2]
[392809487,1761982233006,-2732.83,0.00029868,2]
[392809488,1761982233129,-2732.83,0.00029868,2]
[392809489,1761982233141,-201.40747235,0.00029888,2]
[392809490,1761982233151,-500.0,0.00029888,2]
[392809491,1761982233160,-500.0,0.00029888,2]
[392809492,1761982233170,-500.0,0.00029943,2]
[392809493,1761982233179,-500.0,0.00029943,2]
[392809494,1761982233188,-500.0,0.00029952,2]
[392809495,1761982233198,-920.0,0.00029953,2]
[392809496,1761982233207,-622.0,0.00029953,2]
[392809497,1761982233218,-2732.83,0.00029968,2]
[392809498,1761982233227,-404.18730956,0.00029973,5]
[392809499,1761982233236,-502.33342039,0.00029973,5]
[392809500,1761982233246,-502.71017779,0.00029973,5]
[392809501,1761982233255,-200.75740236,0.00029973,5]
[392809502,1761982233265,-1214.63791658,0.00029979,2]
[392809503,1761982233274,-500.0,0.00029988,2]
[392809504,1761982233283,-1410.67,0.0002999,3]
[392809505,1761982233292,-1214.63791658,0.00029998,2]
[392809506,1761982233302,-500.0,0.00029998,2]
[392809507,1761982233311,-500.0,0.00029998,2]
[392809508,1761982233320,-500.0,0.00029999,4]
[392809509,1761982233329,-500.0,0.00029999,4]
[392809510,1761982233339,-1355.77,0.00029999,4]
[392809511,1761982233348,-500.0,0.00029999,2]
[392809512,1761982233357,-2732.83,0.00029999,2]
[392809513,1761982233366,-346.32128274,0.0003,2]
[392809514,1761982233376,-21930.83,0.0003,7]
[392809515,1761982233386,-151.0,0.0003,13]
[392809516,1761982233396,-356.92961452,0.0003,2]
[392809517,1761982233405,-199.0,0.0003,2]
[392809518,1761982233414,-12601.6880209,0.0003,2]
[392809519,1761982233424,-920.0,0.00030008,2]
[392809520,1761982233433,-622.0,0.00030008,2]
[392809521,1761982233442,-860.0,0.00030046,2]
[392809522,1761982233451,-169.34922116,0.00030053,2]
[392809523,1761982233461,-523.99888205,0.00030053,2]
[392809524,1761982233471,-920.0,0.00030063,2]
[392809525,1761982233480,-622.0,0.00030063,2]
[392809526,1761982233489,-183.69171303,0.000301,2]
[392809527,1761982233498,-920.0,0.00030117,2]
[392809528,1761982233508,-622.0,0.00030117,2]
[392809529,1761982233517,-920.0,0.00030172,2]
[392809530,1761982233528,-622.0,0.00030172,2]
[392809531,1761982233538,-500.0,0.00030187,2]
[392809532,1761982233547,-151.0,0.000302,12]
[392809533,1761982233557,-1174.75369316,0.00030205,2]
[392809534,1761982233567,-920.0,0.00030227,2]
[392809535,1761982233576,-622.0,0.00030227,2]
[392809536,1761982233586,-158.85,0.00030263,2]
[392809537,1761982233595,-2019.788178,0.00030265,2]
[392809538,1761982233606,-920.0,0.00030282,2]
[392809539,1761982233616,-622.0,0.00030282,2]
[392809540,1761982233625,-151.0,0.000303,11]
[392809541,1761982233634,-2090.123071,0.00030308,2]
[392809542,1761982233643,-500.0,0.00030312,4]
[392809543,1761982233653,-500.0,0.00030312,4]
[392809544,1761982233670,-1355.77,0.00030312,4]
[392809545,1761982233680,-920.0,0.00030337,2]
[392809546,1761982233689,-622.0,0.00030337,2]
[392809547,1761982233698,-1478.65717781,0.00030341,2]
[392809548,1761982233709,-472.86425225,0.00030342,2]
[392809549,1761982233720,-2732.83,0.00030342,2]
[392809550,1761982233730,-2732.83,0.00030342,2]
[392809551,1761982233740,-2239.08166196,0.00030344,2]
[392809552,1761982233749,-173.0,0.00030353,7]
[392809553,1761982233758,-151.0,0.00030391,2]
[392809554,1761982233768,-920.0,0.00030391,2]
[392809555,1761982233778,-622.0,0.00030391,2]
[392809556,1761982233788,-920.0,0.00030446,2]
[392809557,1761982233798,-622.0,0.00030446,2]
[392809558,1761982233808,-1881.31844344,0.00030458,2]
[392809559,1761982233822,-469.68155656,0.00030458,2]
[392809560,1761982233831,-2732.83,0.00030462,2]